bitfinex-derivatives/quotes_SOLF0:USTF0_20250211
["timestamp","ask_amount","ask_price","bid_price","bid_amount"]
[1739276265917,0.03431536,201.41,201.36,4.9649]
[1739276266421,0.03431536,201.41,201.28,1.4399]
[1739276266422,13.23010502,201.4,201.34,4.9654]
[1739276266920,0.03279416,201.39,201.34,4.9654]
[1739276267313,0.03279416,201.39,201.29,13.23010502]
[1739276267525,0.03279416,201.39,201.33,4.9657]
[1739276268221,0.03279416,201.39,201.29,13.23010502]
[1739276268920,0.03279416,201.39,201.32,13.23010502]
[1739276269918,0.03279416,201.39,201.29,13.23010502]
[1739276271119,0.03279416,201.39,201.35,4.9652]
[1739276271324,0.03279416,201.39,201.32,13.23010502]
[1739276271622,13.23010502,201.46,201.39,4.964]
[1739276271819,13.23010502,201.46,201.35,13.23010502]
[1739276272016,7.9447,201.48,201.35,13.23010502]
[1739276272319,2.9826,201.48,201.35,13.23010502]
[1739276272621,2.9826,201.48,201.38,13.23010502]
[1739276272919,0.03238787,201.44,201.39,0.03628436]
[1739276274516,0.03238787,201.44,201.41,4.9635]
[1739276274720,0.03238787,201.44,201.39,0.03628436]
[1739276275022,0.03238787,201.44,201.4,4.9638]
[1739276275220,0.03238787,201.44,201.39,0.03628436]
[1739276275720,0.03238787,201.44,201.41,4.9637]
[1739276276222,0.03238787,201.44,201.42,4.9634]
[1739276276422,0.03238787,201.44,201.39,0.03628436]
[1739276277014,0.03238787,201.44,201.43,4.9632]
[1739276279924,13.23010502,201.52,201.41,13.23010502]
[1739276280128,13.23010502,201.55,201.41,13.23010502]
[1739276280723,13.23010502,201.55,201.47,4.9621]
[1739276280926,13.23010502,201.55,201.41,13.23010502]
[1739276281128,0.0358539,201.53,201.49,0.0328566]
[1739276282922,0.0358539,201.53,201.52,4.961]
[1739276283320,13.23010502,201.64,201.52,4.961]
[1739276283520,17.92110502,201.67,201.53,13.23010502]
[1739276283928,4.958,201.65,201.58,4.9593]
[1739276284122,17.92110502,201.67,201.53,13.23010502]
[1739276284320,17.92110502,201.67,201.56,13.23010502]
[1739276284727,0.03198418,201.62,201.59,4.9593]
[1739276284919,0.03198418,201.62,201.58,0.03550561]
[1739276285424,0.03198418,201.62,201.59,13.23010502]
[1739276285620,4.5374,201.72,201.59,21.23248736]
[1739276286024,4.9565,201.71,201.64,4.958]
[1739276286229,4.9565,201.71,201.59,21.23248736]
[1739276286431,4.9566,201.7,201.63,4.9582]
[1739276286928,0.03565688,201.69,201.64,0.03538401]
[1739276287529,0.03565688,201.69,201.65,4.9578]
[1739276287729,0.03565688,201.69,201.64,0.03538401]
[1739276288432,0.03565688,201.69,201.64,4.99328401]
[1739276288625,0.03565688,201.69,201.64,0.03538401]
[1739276289131,0.03565688,201.69,201.68,4.9571]
[1739276289529,0.03565688,201.69,201.65,21.23248736]
[1739276289921,21.23248736,201.82,201.65,21.23248736]
[1739276290125,4.9543,201.8,201.65,21.23248736]
[1739276290329,21.23248736,201.82,201.65,21.23248736]
[1739276290624,4.9549,201.77,201.7,4.9565]
[1739276290830,4.9549,201.77,201.65,21.23248736]
[1739276291023,21.23248736,201.82,201.65,21.23248736]
[1739276291225,0.03491335,201.73,201.69,0.03461193]
[1739276291626,21.23248736,201.79,201.61,1.5548]
[1739276291822,4.9559,201.73,201.69,0.03530243]
[1739276292026,0.03594987,201.73,201.69,0.03530243]
[1739276292932,4.9566,201.7,201.69,0.03530243]
[1739276294731,1.5258,201.72,201.69,0.03530243]
[1739276294929,0.03594987,201.73,201.69,0.03530243]
[1739276296933,4.9566,201.7,201.69,0.03530243]
[1739276299835,0.03594987,201.73,201.69,0.03530243]
[1739276301138,0.03594987,201.73,201.69,4.99190243]
[1739276301337,0.03594987,201.73,201.69,0.03530243]
[1739276301935,0.03594987,201.73,201.71,4.9563]
[1739276302138,0.03594987,201.73,201.69,0.03530243]
[1739276302439,0.03594987,201.73,201.72,4.9561]
[1739276303235,0.03594987,201.73,201.7,4.9563]
[1739276303436,0.03594987,201.73,201.69,0.03530243]
[1739276304132,4.99174987,201.73,201.69,0.03530243]
[1739276304632,0.03594987,201.73,201.69,0.03530243]
[1739276307238,4.9564,201.71,201.69,0.03530243]
[1739276307634,0.03594987,201.73,201.69,0.03530243]
[1739276308038,4.9566,201.7,201.69,0.03530243]
[1739276308545,0.03594987,201.73,201.69,0.03530243]
[1739276309942,0.03594987,201.73,201.7,4.9564]
[1739276310550,0.03594987,201.73,201.72,4.9561]
[1739276311748,0.03594987,201.73,201.71,4.9563]
[1739276312049,0.03594987,201.73,201.69,0.03530243]
[1739276312544,0.03594987,201.73,201.72,4.9561]
[1739276313244,0.03594987,201.73,201.69,0.03530243]
[1739276314252,4.9566,201.7,201.69,0.03530243]
[1739276315053,4.9564,201.71,201.69,0.03530243]
[1739276315456,0.03594987,201.73,201.69,0.03530243]
[1739276317151,4.9564,201.71,201.69,0.03530243]
[1739276317347,0.03594987,201.73,201.69,0.03530243]
[1739276317749,4.9566,201.7,201.69,0.03530243]
[1739276318456,4.9563,201.72,201.69,0.03530243]
[1739276318754,0.03594987,201.73,201.69,0.03530243]
[1739276321458,4.9563,201.72,201.69,0.03530243]
[1739276321658,0.03594987,201.73,201.69,0.03530243]
[1739276322153,4.9566,201.7,201.69,0.03530243]
[1739276322851,21.26843723,201.73,201.56,24.32678736]
[1739276323056,21.23248736,201.73,201.6,4.959]
[1739276323854,21.23248736,201.73,201.56,24.32678736]
[1739276324058,4.958,201.65,201.64,0.03366371]
[1739276324254,0.03220095,201.69,201.64,0.03366371]
[1739276324460,21.26468831,201.69,201.64,0.03366371]
[1739276324661,3.0876,201.68,201.64,0.03366371]
[1739276326458,1.5284,201.68,201.64,0.03366371]
[1739276327266,0.03220095,201.69,201.64,0.03366371]
[1739276330569,0.03220095,201.69,201.66,4.9575]
[1739276330760,0.03220095,201.69,201.64,0.03366371]
[1739276331766,0.03220095,201.69,201.66,4.9573]
[1739276332167,0.03220095,201.69,201.65,4.9578]
[1739276333071,0.03220095,201.69,201.64,0.03366371]
[1739276334066,0.03220095,201.69,201.65,4.9577]
[1739276334364,0.03220095,201.69,201.64,0.03366371]
[1739276334867,0.03220095,201.69,201.67,4.9571]
[1739276335667,0.03220095,201.69,201.64,0.03366371]
[1739276335868,0.03220095,201.69,201.68,4.9571]
[1739276338571,21.23248736,201.84,201.67,21.23248736]
[1739276338769,20.1016645,201.91,201.67,21.23248736]
[1739276338770,1.571,201.83,201.67,21.23248736]
[1739276339268,4.9545,201.79,201.67,21.23248736]
[1739276339473,1.571,201.83,201.67,21.23248736]
[1739276339674,0.03204858,201.75,201.71,0.03269047]
[1739276340272,0.03204858,201.75,201.74,4.9554]
[1739276342279,1.571,201.83,201.74,13.25685379]
[1739276343073,1.571,201.83,201.7,13.25685379]
[1739276343479,0.03529874,201.79,201.74,0.0319096]
[1739276343771,0.03529874,201.79,201.74,4.9872096]
[1739276343972,0.03529874,201.79,201.74,0.0319096]
[1739276345978,0.03529874,201.79,201.76,4.9549]
[1739276346178,0.03529874,201.79,201.74,0.0319096]
[1739276346483,0.03529874,201.79,201.75,4.9553]
[1739276346669,0.03529874,201.79,201.74,0.0319096]
[1739276346872,0.03529874,201.79,201.77,4.9548]
[1739276347080,0.03529874,201.79,201.76,13.25685379]
[1739276347778,0.03529874,201.79,201.78,4.9546]
[1739276348381,0.03529874,201.79,201.76,18.21195379]
[1739276348571,0.03529874,201.79,201.74,0.0319096]
[1739276349780,0.03529874,201.79,201.76,4.955]
[1739276350077,0.03529874,201.79,201.74,0.0319096]
[1739276350677,13.25685379,201.78,201.74,0.0319096]
[1739276350876,1.5511,201.77,201.74,0.0319096]
[1739276352880,6.5061,201.77,201.74,0.0319096]
[1739276353285,1.5511,201.77,201.74,0.0319096]
[1739276355686,1.5511,201.77,201.74,4.9875096]
[1739276355877,1.5511,201.77,201.74,0.0319096]
[1739276357283,4.9551,201.76,201.74,0.0319096]
[1739276357889,4.9553,201.75,201.74,0.0319096]
[1739276358683,1.5511,201.77,201.68,4.957]
[1739276358991,1.5511,201.77,201.65,15.89536]
[1739276359287,1.5511,201.77,201.66,4.9575]
[1739276359780,1.5511,201.77,201.67,4.9571]
[1739276360087,0.03244545,201.74,201.69,0.03594681]
[1739276360993,4.9566,201.7,201.65,15.89536]
[1739276361289,21.22470282,201.76,201.65,15.89536]
[1739276361688,4.957,201.69,201.65,15.89536]
[1739276362186,4.99135188,201.69,201.65,15.93353191]
[1739276362792,0.03435188,201.69,201.65,15.93353191]
[1739276365093,0.03435188,201.69,201.67,4.9573]
[1739276365291,0.03435188,201.69,201.65,15.93353191]
[1739276365687,0.03435188,201.69,201.68,4.9571]
[1739276366094,3.019,201.8,201.68,21.22470282]
[1739276366597,1.4952,201.83,201.69,3.0503]
[1739276367192,0.03794991,201.78,201.74,0.03423132]
[1739276367495,0.03794991,201.78,201.75,4.9551]
[1739276367990,0.03794991,201.78,201.74,0.03423132]
[1739276368592,0.03794991,201.78,201.76,4.955]
[1739276368794,0.03794991,201.78,201.74,0.03423132]
[1739276369096,0.03794991,201.78,201.77,4.9548]
[1739276370802,0.03794991,201.78,201.76,4.9551]
[1739276371408,0.03794991,201.78,201.77,4.9548]
[1739276372301,0.03794991,201.78,201.74,0.03423132]
[1739276373606,0.03794991,201.78,201.74,13.28725093]
[1739276373909,0.03794991,201.78,201.77,18.20781961]
[1739276374504,4.991e-05,201.78,201.77,18.20781961]
[1739276375306,4.9519,201.89,201.83,4.9533]
[1739276376110,1.5603,201.91,201.8,13.25301961]
[1739276376313,1.5603,201.91,201.82,4.9536]
[1739276376507,0.03592128,201.88,201.83,0.03139403]
[1739276376903,4.9522,201.88,201.83,0.03139403]
[1739276377103,0.03810686,201.88,201.83,0.03139403]
[1739276377403,13.29112647,201.88,201.83,0.03139403]
[1739276378313,4.9531,201.85,201.83,0.03139403]
[1739276378916,4.9525,201.87,201.83,0.03139403]
[1739276379412,0.03810686,201.88,201.83,0.03139403]
[1739276380015,4.9527,201.86,201.83,0.03139403]
[1739276380711,0.03810686,201.88,201.83,0.03139403]
[1739276381317,0.03810686,201.88,201.83,13.28441364]
[1739276382010,0.03810686,201.88,201.87,4.9524]
[1739276382611,1.4645,201.96,201.91,4.9514]
[1739276382913,1.4645,201.96,201.86,13.25301961]
[1739276383415,1.4645,201.96,201.89,13.25301961]
[1739276383612,1.5752,201.98,201.91,4.9512]
[1739276383814,0.03390638,201.95,201.9,0.03131073]
[1739276384212,0.03390638,201.95,201.9,4.98291073]
[1739276384516,0.03390638,201.95,201.9,0.03131073]
[1739276385216,0.03390638,201.95,201.92,4.9509]
[1739276385416,0.03390638,201.95,201.9,0.03131073]
[1739276385816,0.03390638,201.95,201.92,4.9511]
[1739276387218,0.03390638,201.95,201.9,4.98281073]
[1739276387919,0.03390638,201.95,201.9,0.03131073]
[1739276388520,0.03390638,201.95,201.9,4.98271073]
[1739276389420,0.03390638,201.95,201.9,0.03131073]
[1739276390121,4.9511,201.93,201.9,0.03131073]
[1739276390622,4.9514,201.91,201.9,0.03131073]
[1739276391017,3.0631,201.94,201.9,0.03131073]
[1739276391717,4.9514,201.91,201.9,0.03131073]
[1739276393925,4.6454,201.94,201.9,0.03131073]
[1739276394223,4.9512,201.92,201.9,0.03131073]
[1739276394425,4.6454,201.94,201.9,0.03131073]
[1739276394723,4.9514,201.91,201.9,0.03131073]
[1739276394924,4.6454,201.94,201.9,0.03131073]
[1739276395523,4.9512,201.92,201.9,0.03131073]
[1739276395825,4.6454,201.94,201.9,0.03131073]
[1739276396124,4.9513,201.92,201.9,0.03131073]
[1739276396326,4.6454,201.94,201.9,0.03131073]
[1739276397125,4.9514,201.91,201.9,0.03131073]
[1739276398022,4.9511,201.93,201.9,0.03131073]
[1739276398422,4.6454,201.94,201.9,0.03131073]
[1739276399428,4.9514,201.91,201.9,0.03131073]
[1739276400230,4.9511,201.93,201.9,0.03131073]
[1739276400426,4.6454,201.94,201.9,0.03131073]
[1739276400924,4.9514,201.91,201.9,0.03131073]
[1739276401222,4.6454,201.94,201.9,0.03131073]
[1739276401428,4.9512,201.92,201.9,0.03131073]
[1739276401629,4.6454,201.94,201.9,0.03131073]
[1739276401927,4.951,201.93,201.9,0.03131073]
[1739276402122,0.03390638,201.95,201.9,0.03131073]
[1739276403327,0.03390638,201.95,201.94,4.9507]
[1739276403725,0.03390638,201.95,201.9,0.03131073]
[1739276404333,4.9511,201.93,201.9,0.03131073]
[1739276404726,0.03390638,201.95,201.9,0.03131073]
[1739276405630,4.9514,201.91,201.9,0.03131073]
[1739276405827,3.0358,201.94,201.9,0.03131073]
[1739276406222,4.9514,201.91,201.9,0.03131073]
[1739276408531,4.9528,201.86,201.8,4.9539]
[1739276408730,13.24401022,201.88,201.76,13.24401022]
[1739276409622,4.9537,201.82,201.76,13.24401022]
[1739276409824,4.9537,201.82,201.8,0.03414457]
[1739276412433,4.9539,201.81,201.8,0.03414457]
[1739276412836,4.9539,201.81,201.7,13.24401022]
[1739276412837,13.24401022,201.82,201.7,13.24401022]
[1739276413135,4.9549,201.77,201.7,13.24401022]
[1739276414036,0.03346641,201.76,201.71,0.03771037]
[1739276414230,4.98856641,201.76,201.71,0.03771037]
[1739276415131,4.9554,201.75,201.71,0.03771037]
[1739276415435,0.03346641,201.76,201.71,0.03771037]
[1739276416030,4.98876641,201.76,201.71,0.03771037]
[1739276416237,0.03346641,201.76,201.71,0.03771037]
[1739276416535,0.03346641,201.76,201.73,4.9558]
[1739276417437,0.03346641,201.76,201.71,0.03771037]
[1739276420335,0.03346641,201.76,201.75,4.9553]
[1739276421930,0.03346641,201.76,201.71,3.04391037]
[1739276422531,0.03346641,201.76,201.75,4.9553]
[1739276422734,0.03346641,201.76,201.75,18.19931022]
[1739276422735,6.641e-05,201.76,201.75,18.19931022]
[1739276424835,1.5042,201.87,201.75,13.24401022]
[1739276425041,1.5042,201.87,201.82,4.9535]
[1739276425342,1.5042,201.87,201.78,13.24401022]
[1739276426041,0.03346662,201.85,201.8,0.03766545]
[1739276427938,13.27747684,201.85,201.8,0.03766545]
[1739276428143,13.24401022,201.82,201.69,13.24401022]
[1739276428642,1.5563,201.81,201.69,13.24401022]
[1739276428942,4.9546,201.78,201.72,4.9561]
[1739276429540,0.03353205,201.77,201.73,0.03423662]
[1739276429839,0.03353205,201.77,201.73,4.98993662]
[1739276430044,0.03353205,201.77,201.73,0.03423662]
[1739276431053,0.03353205,201.77,201.75,4.9553]
[1739276431444,0.03353205,201.77,201.73,0.03423662]
[1739276431646,0.03353205,201.77,201.74,4.9555]
[1739276431948,0.03353205,201.77,201.73,0.03423662]
[1739276435750,0.03353205,201.77,201.76,4.9551]
[1739276437449,2.9688,201.86,201.75,13.24401022]
[1739276437648,1.4803,201.86,201.78,13.24401022]
[1739276438146,4.9532,201.84,201.78,13.24401022]
[1739276438648,0.03170234,201.83,201.79,0.03165805]
[1739276439354,0.03170234,201.83,201.8,4.9539]
[1739276439651,0.03170234,201.83,201.79,0.03165805]
[1739276439853,0.03170234,201.83,201.82,4.9536]
[1739276440853,0.03170234,201.83,201.79,0.03165805]
[1739276441553,0.03170234,201.83,201.82,4.9536]
[1739276444057,3.1124,201.95,201.86,4.9524]
[1739276444854,4.9512,201.92,201.86,4.9524]
[1739276445154,0.03185807,201.93,201.88,0.03785556]
[1739276446351,4.9514,201.92,201.88,0.03785556]
[1739276447256,4.98275807,201.93,201.89,4.9519]
[1739276447454,0.03185807,201.93,201.88,0.03785556]
[1739276448359,0.03185807,201.93,201.92,4.9512]
[1739276448551,0.03185807,201.93,201.88,0.03785556]
[1739276449156,0.03185807,201.93,201.92,4.9512]
[1739276451557,13.24401022,202.06,201.9,13.24401022]
[1739276451760,13.24401022,202.06,201.93,13.24401022]
[1739276452358,13.24401022,202.06,201.83,1.5061]
[1739276452359,13.24401022,202.03,201.9,13.24401022]
[1739276452557,1.6124,202.02,201.9,13.24401022]
[1739276452857,4.9499,201.98,201.94,0.03496531]
[1739276453059,0.03466178,201.99,201.94,0.03496531]
[1739276455762,0.03466178,201.99,201.97,4.9499]
[1739276456553,0.03466178,201.99,201.95,13.24401022]
[1739276456759,0.03466178,201.99,201.98,4.9497]
[1739276457660,0.03466178,201.99,201.95,13.24401022]
[1739276457861,0.03466178,201.99,201.97,4.9499]
[1739276458367,0.03466178,201.99,201.96,4.9502]
[1739276458564,0.03466178,201.99,201.95,13.24401022]
[1739276459566,0.03466178,201.99,201.94,0.03496531]
[1739276460263,4.98436178,201.99,201.94,0.03496531]
[1739276460462,0.03466178,201.99,201.94,0.03496531]
[1739276460966,4.9499,201.97,201.94,0.03496531]
[1739276461571,4.9502,201.96,201.94,0.03496531]
[1739276461759,0.03466178,201.99,201.86,13.24401022]
[1739276461964,13.24401022,201.97,201.83,13.24401022]
[1739276462165,1.5211,201.96,201.83,13.24401022]
[1739276462359,4.9514,201.92,201.85,4.9529]
[1739276462565,4.9514,201.92,201.83,13.24401022]
[1739276462566,1.5211,201.96,201.83,13.24401022]
[1739276462870,4.9511,201.93,201.84,4.9531]
[1739276463064,0.03435054,201.92,201.87,0.03643309]
[1739276466870,0.03435054,201.92,201.87,4.98873309]
[1739276467576,4.98555054,201.92,201.87,0.03643309]
[1739276467773,0.03435054,201.92,201.87,0.03643309]
[1739276468867,13.24401022,201.9,201.77,13.24401022]
[1739276469066,1.5554,201.89,201.8,13.24401022]
[1739276469576,1.5554,201.89,201.85,4.9528]
[1739276470076,1.59130769,201.89,201.85,4.98933853]
[1739276470274,0.03590769,201.89,201.86,4.9525]
[1739276470775,0.03590769,201.89,201.87,4.9523]
[1739276472777,0.03590769,201.89,201.85,4.98923853]
[1739276473079,0.03590769,201.89,201.85,0.03653853]
[1739276473478,0.03590769,201.89,201.85,4.98913853]
[1739276473783,0.03590769,201.89,201.85,0.03653853]
[1739276474579,0.03590769,201.89,201.85,4.98943853]
[1739276474978,0.03590769,201.89,201.85,0.03653853]
[1739276475174,0.03590769,201.89,201.86,4.9524]
[1739276475571,0.03590769,201.89,201.85,0.03653853]
[1739276476180,0.03590769,201.89,201.88,4.9521]
[1739276477084,13.24401022,202.05,201.86,13.24401022]
[1739276477280,13.24401022,202.05,201.92,13.24401022]
[1739276477486,4.9495,201.99,201.93,4.9509]
[1739276477687,13.24401022,202.05,201.92,13.24401022]
[1739276477986,4.949,202.01,201.95,4.9503]
[1739276478184,0.03758261,202.01,201.96,0.03238665]
[1739276478686,0.03758261,202.01,201.98,13.24401022]
[1739276479283,0.03758261,202.01,201.99,4.9494]
[1739276480488,0.03758261,202.01,201.96,4.98258665]
[1739276480689,0.03758261,202.01,201.96,0.03238665]
[1739276481381,0.03758261,202.01,201.97,4.9499]
[1739276481783,0.03758261,202.01,201.96,0.03238665]
[1739276484392,4.9499,201.98,201.9,4.9515]
[1739276484584,4.9499,201.98,201.89,13.24401022]
[1739276484786,13.24401022,201.99,201.86,79.93101651]
[1739276484984,4.9505,201.95,201.88,4.952]
[1739276485386,4.9502,201.96,201.89,4.9519]
[1739276485579,0.03504965,201.94,201.89,4.98522085]
[1739276486385,0.03504965,201.94,201.89,0.03332085]
[1739276487790,4.951,201.93,201.89,15.90260085]
[1739276488495,0.03504965,201.94,201.89,15.90260085]
[1739276488899,0.03504965,201.94,201.89,20.85430085]
[1739276489386,0.03504965,201.94,201.91,4.9513]
[1739276489590,0.03504965,201.94,201.9,13.24401022]
[1739276490488,0.03504965,201.94,201.9,18.19541022]
[1739276490693,0.03504965,201.94,201.9,13.24401022]
[1739276491596,0.03504965,201.94,201.93,13.24401022]
[1739276491797,0.03504965,201.94,201.93,18.19491022]
[1739276492995,3.0085,202.06,201.93,13.24401022]
[1739276493396,4.9485,202.03,201.93,13.24401022]
[1739276493596,4.9485,202.03,201.97,4.9499]
[1739276494198,0.03646754,202.02,201.98,0.03657904]
[1739276494601,4.98526754,202.02,201.98,0.03657904]
[1739276494993,0.03646754,202.02,201.98,0.03657904]
[1739276495902,0.03646754,202.02,202.0,4.9491]
[1739276496096,0.03646754,202.02,201.98,0.03657904]
[1739276496601,0.03646754,202.02,201.98,4.98617904]
[1739276497301,0.03646754,202.02,201.98,0.03657904]
[1739276498500,4.949,202.01,201.98,0.03657904]
[1739276498903,0.03646754,202.02,201.98,0.03657904]
[1739276501303,4.98536754,202.02,201.98,0.03657904]
[1739276501606,0.03646754,202.02,201.98,0.03657904]
[1739276501906,0.03646754,202.02,201.99,4.9492]
[1739276502206,0.03646754,202.02,201.98,0.03657904]
[1739276502602,0.03646754,202.02,201.99,4.9494]
[1739276503306,0.03646754,202.02,202.01,4.949]
[1739276503504,0.03646754,202.02,201.99,13.24401022]
[1739276504906,0.03646754,202.02,201.98,0.03657904]
[1739276505805,0.03646754,202.02,201.98,4.98607904]
[1739276506602,0.03646754,202.02,201.98,0.03657904]
[1739276506807,0.03646754,202.02,202.0,4.9492]
[1739276507499,0.03646754,202.02,201.99,13.24401022]
[1739276507700,0.03646754,202.02,202.01,4.949]
[1739276508307,0.03646754,202.02,201.99,13.24401022]
[1739276508511,0.03646754,202.02,202.0,4.9492]
[1739276509312,0.03646754,202.02,202.01,4.949]
[1739276510307,0.03646754,202.02,202.0,4.9492]
[1739276510710,13.24401022,202.14,201.99,13.24401022]
[1739276510908,13.24401022,202.14,202.03,13.24401022]
[1739276511107,4.9468,202.1,202.03,13.24401022]
[1739276511312,13.24401022,202.14,202.05,4.9479]
[1739276511707,13.24401022,202.14,202.07,0.03265622]
[1739276511914,0.03663826,202.12,202.07,0.03265622]
[1739276512417,0.03663826,202.12,202.08,4.9472]
[1739276512618,0.03663826,202.12,202.07,0.03265622]
[1739276513519,4.98293826,202.12,202.07,0.03265622]
[1739276514016,0.03663826,202.12,202.09,4.947]
[1739276515319,0.03663826,202.12,202.07,0.03265622]
[1739276515619,4.98293826,202.12,202.08,4.9472]
[1739276517624,0.03663826,202.12,202.07,0.03265622]
[1739276518121,4.98293826,202.12,202.08,4.9471]
[1739276518318,0.03663826,202.12,202.07,0.03265622]
[1739276519022,4.9466,202.11,202.07,4.97995622]
[1739276519221,4.9466,202.11,202.07,0.03265622]
[1739276520019,4.98293826,202.12,202.08,4.947]
[1739276520814,0.03663826,202.12,202.11,4.9465]
[1739276521724,0.03663826,202.12,202.09,13.24401022]
[1739276521922,0.03663826,202.12,202.1,4.9467]
[1739276522120,0.03663826,202.12,202.09,13.24401022]
[1739276522322,0.03663826,202.12,202.07,0.03265622]
[1739276522817,0.03663826,202.12,202.09,13.24401022]
[1739276523420,0.03663826,202.12,202.07,4.98005622]
[1739276523622,0.03663826,202.12,202.07,0.03265622]
[1739276524820,4.9469,202.1,202.07,0.03265622]
[1739276525020,0.03663826,202.12,202.07,0.03265622]
[1739276525525,0.03663826,202.12,202.07,4.98005622]
[1739276525824,0.03663826,202.12,202.07,0.03265622]
[1739276525825,4.9466,202.11,202.07,0.03265622]
[1739276526023,0.03663826,202.12,202.07,0.03265622]
[1739276526418,4.947,202.1,202.07,0.03265622]
[1739276526617,0.03663826,202.12,202.07,0.03265622]
[1739276526824,1.4817,202.11,202.07,0.03265622]
[1739276527019,4.9468,202.1,202.07,0.03265622]
[1739276527224,1.4817,202.11,202.07,0.03265622]
[1739276527427,0.03663826,202.12,202.07,0.03265622]
[1739276527726,0.03663826,202.12,202.09,8.45594963]
[1739276528326,4.98293826,202.12,202.09,8.45594963]
[1739276528627,0.03663826,202.12,202.07,8.48860585]
[1739276528827,4.947,202.09,202.07,0.03265622]
[1739276529128,8.49258789,202.12,202.07,0.03265622]
[1739276529827,4.9472,202.08,202.07,0.03265622]
[1739276530226,8.49258789,202.12,202.07,0.03265622]
[1739276530424,0.03663826,202.12,202.07,8.48860585]
[1739276531029,0.03663826,202.12,202.09,8.45594963]
[1739276531631,0.03663826,202.12,202.07,0.03265622]
[1739276533031,0.03663826,202.12,202.08,4.947]
[1739276533232,0.03663826,202.12,202.07,0.03265622]
[1739276533831,0.03663826,202.12,202.08,13.21354663]
[1739276534037,0.03663826,202.12,202.11,13.21354663]
[1739276534530,0.03663826,202.12,202.08,13.21354663]
[1739276535034,0.03663826,202.12,202.09,4.9468]
[1739276535229,0.03663826,202.12,202.08,13.21354663]
[1739276535430,0.03663826,202.12,202.09,4.947]
[1739276535835,0.03663826,202.12,202.08,13.21354663]
[1739276536436,0.03663826,202.12,202.11,13.21354663]
[1739276536733,4.945,202.18,202.11,13.21354663]
[1739276536934,204.21354663,202.25,202.11,13.21354663]
[1739276537130,13.21354663,202.25,202.11,13.21354663]
[1739276537334,4.9446,202.19,202.11,13.21354663]
[1739276537535,13.21354663,202.22,202.11,13.21354663]
[1739276537730,4.592,202.21,202.11,13.21354663]
[1739276537933,0.03289872,202.19,202.14,0.03262016]
[1739276538530,4.97749872,202.19,202.14,4.97832016]
[1739276538931,0.03289872,202.19,202.14,4.97832016]
[1739276539542,0.03289872,202.19,202.14,0.03262016]
[1739276539834,0.03289872,202.19,202.14,13.24616679]
[1739276540241,0.03289872,202.19,202.17,4.945]
[1739276540631,0.03289872,202.19,202.14,13.24616679]
[1739276540939,0.03289872,202.19,202.18,4.9448]
[1739276541741,0.03289872,202.19,202.16,4.9451]
[1739276542035,0.03289872,202.19,202.14,0.03262016]
[1739276542247,4.9429,202.26,202.21,4.944]
[1739276542535,2.9835,202.27,202.2,13.21354663]
[1739276542741,2.9835,202.27,202.17,13.21354663]
[1739276543142,4.9439,202.22,202.17,13.21354663]
[1739276543340,4.9439,202.22,202.2,0.03252267]
[1739276543537,4.9441,202.21,202.2,0.03252267]
[1739276543737,0.03120587,202.24,202.11,13.21354663]
[1739276543943,13.21354663,202.22,202.08,13.21354663]
[1739276544543,13.21354663,202.22,202.08,18.16054663]
[1739276544943,0.03356866,202.17,202.13,0.03600293]
[1739276545642,4.9455,202.16,202.13,0.03600293]
[1739276545840,0.03356866,202.17,202.13,0.03600293]
[1739276546343,13.21354663,202.16,202.02,13.21354663]
[1739276546537,0.03356866,202.17,202.02,13.21354663]
[1739276546538,13.21354663,202.13,202.02,13.21354663]
[1739276546737,4.9476,202.07,202.02,13.21354663]
[1739276547135,13.21354663,202.13,202.02,13.21354663]
[1739276547445,0.03587191,202.07,202.02,13.24898503]
[1739276547744,4.9471,202.09,202.02,13.21354663]
[1739276547945,0.03119247,202.07,202.02,13.24834215]
[1739276548336,0.03119247,202.07,202.04,4.9482]
[1739276548540,0.03119247,202.07,202.05,13.21354663]
[1739276548736,0.03119247,202.07,202.02,13.24834215]
[1739276548940,0.03119247,202.07,202.04,4.9482]
[1739276549139,0.03119247,202.07,202.02,13.24834215]
[1739276549340,0.03119247,202.07,202.05,13.21354663]
[1739276551147,0.03119247,202.07,202.02,13.24834215]
[1739276551641,0.03119247,202.07,202.03,4.9484]
[1739276552747,0.03119247,202.07,202.02,13.24834215]
[1739276553142,0.03119247,202.07,202.06,13.21354663]
[1739276553348,0.03119247,202.07,202.06,18.16124663]
[1739276553540,0.03119247,202.07,202.02,13.24834215]
[1739276554150,0.03119247,202.07,202.04,4.948]
[1739276554548,0.03119247,202.07,202.05,4.9479]
[1739276554744,0.03119247,202.07,202.02,13.24834215]
[1739276555548,0.03119247,202.07,202.05,13.21354663]
[1739276555950,0.03119247,202.07,202.06,4.9477]